{"text_format":"3","workbook":"xlsx","n_sheets":1,"sheets":["INVENTÁRNY ZOZNAM VYBAVENIA"],"not_rendered":{"defined_names":5},"read":"whole","date_system":"1900"}

{"sheet":"INVENTÁRNY ZOZNAM VYBAVENIA","index":0,"n_rows":9,"n_cols":19,"rows_kept":9,"merged":[[0,1,0,5],[0,6,0,9],[0,10,0,12],[0,13,0,14],[2,1,2,6],[2,7,2,18]]}
[null,"INVENTÁRNY ZOZNAM VYBAVENIA"]
[]
[null,"FYZICKÝ STAV",{"$nulls":5},"FINANČNÝ STAV"]
[null,"Inventárne alebo sériové číslo","Popis položky (značka a model)","Oblasť","Stav","Dodávateľ","Počet zostávajúcich rokov služby ","Počiatočná hodnota","Záloha","Dátum zakúpenia alebo prenajatia","Dĺžka trvania úveru v rokoch","Sadzba úveru","Mesačná splátka","Mesačné prevádzkové náklady","Celkové mesačné náklady","Očakávaná hodnota po skončení trvania úveru","Ročné lineárne odpisy","Mesačné lineárne odpisy","Aktuálna hodnota"]
[null,123,"Model značky","Hlavná pobočka","Dobrý","miestny",5,{"v":30000,"d":"30,000.00 €"},{"v":5000,"d":"5,000.00 €"},{"$f":"DATE(YEAR(TODAY())-2, 1,1)","v":"2016-01-01"},4,{"v":0.1,"d":"10.00%"},{"$f":"IFERROR(IF(AND(Údaje[[#This Row],[Počiatočná hodnota]]>0,Údaje[[#This Row],[Počiatočná hodnota]]<>Údaje[[#This Row],[Záloha]]),-1*PMT(Údaje[[#This Row],[Sadzba úveru]]/12,Údaje[[#This Row],[Dĺžka trvania úveru v rokoch]]*12,Údaje[[#This Row],[Počiatočná hodnota]]-Údaje[[#This Row],[Záloha]]),0),0)","v":{"v":634.0645858686797,"d":"634.06 €"}},{"v":200,"d":"200.00 €"},{"$f":"IFERROR(Údaje[[#This Row],[Mesačné prevádzkové náklady]]+Údaje[[#This Row],[Mesačná splátka]],\"\")","v":{"v":834.0645858686797,"d":"834.06 €"}},{"v":20000,"d":"20,000.00 €"},{"$f":"IFERROR(IF(Údaje[[#This Row],[Počiatočná hodnota]]>0,SLN(Údaje[[#This Row],[Počiatočná hodnota]],Údaje[[#This Row],[Očakávaná hodnota po skončení trvania úveru]],Údaje[[#This Row],[Počet zostávajúcich rokov služby ]]),0),0)","v":{"v":2000,"d":"2,000.00 €"}},{"$f":"IFERROR(Údaje[[#This Row],[Ročné lineárne odpisy]]/12,0)","v":{"v":166.66666666666666,"d":"166.67 €"}},{"$f":"IFERROR(Údaje[[#This Row],[Počiatočná hodnota]]-(Údaje[[#This Row],[Ročné lineárne odpisy]]*((TODAY()-Údaje[[#This Row],[Dátum zakúpenia alebo prenajatia]])/365)),0)","v":{"v":25013.698630136987,"d":"25,013.70 €"}}]
[null,456,"Model značky","Hlavná pobočka","Vynikajúci","miestny",3,{"v":5000,"d":"5,000.00 €"},{"v":5000,"d":"5,000.00 €"},{"$f":"DATE(YEAR(TODAY())-1, 1,1)","v":"2017-01-01"},null,null,{"$f":"IFERROR(IF(AND(Údaje[[#This Row],[Počiatočná hodnota]]>0,Údaje[[#This Row],[Počiatočná hodnota]]<>Údaje[[#This Row],[Záloha]]),-1*PMT(Údaje[[#This Row],[Sadzba úveru]]/12,Údaje[[#This Row],[Dĺžka trvania úveru v rokoch]]*12,Údaje[[#This Row],[Počiatočná hodnota]]-Údaje[[#This Row],[Záloha]]),0),0)","v":{"v":0,"d":"0.00 €"}},{"v":20,"d":"20.00 €"},{"$f":"IFERROR(Údaje[[#This Row],[Mesačné prevádzkové náklady]]+Údaje[[#This Row],[Mesačná splátka]],\"\")","v":{"v":20,"d":"20.00 €"}},null,{"$f":"IFERROR(IF(Údaje[[#This Row],[Počiatočná hodnota]]>0,SLN(Údaje[[#This Row],[Počiatočná hodnota]],Údaje[[#This Row],[Očakávaná hodnota po skončení trvania úveru]],Údaje[[#This Row],[Počet zostávajúcich rokov služby ]]),0),0)","v":{"v":1666.6666666666667,"d":"1,666.67 €"}},{"$f":"IFERROR(Údaje[[#This Row],[Ročné lineárne odpisy]]/12,0)","v":{"v":138.88888888888889,"d":"138.89 €"}},{"$f":"IFERROR(Údaje[[#This Row],[Počiatočná hodnota]]-(Údaje[[#This Row],[Ročné lineárne odpisy]]*((TODAY()-Údaje[[#This Row],[Dátum zakúpenia alebo prenajatia]])/365)),0)","v":{"v":2515.981735159817,"d":"2,515.98 €"}}]
[null,789,"Model značky","Východné pobrežie","Pomerne dobrý","miestny",6,{"v":50000,"d":"50,000.00 €"},{"v":20000,"d":"20,000.00 €"},{"$f":"TODAY()","v":"2018-06-29"},5,{"v":0.05,"d":"5.00%"},{"$f":"IFERROR(IF(AND(Údaje[[#This Row],[Počiatočná hodnota]]>0,Údaje[[#This Row],[Počiatočná hodnota]]<>Údaje[[#This Row],[Záloha]]),-1*PMT(Údaje[[#This Row],[Sadzba úveru]]/12,Údaje[[#This Row],[Dĺžka trvania úveru v rokoch]]*12,Údaje[[#This Row],[Počiatočná hodnota]]-Údaje[[#This Row],[Záloha]]),0),0)","v":{"v":566.137009320328,"d":"566.14 €"}},{"v":40,"d":"40.00 €"},{"$f":"IFERROR(Údaje[[#This Row],[Mesačné prevádzkové náklady]]+Údaje[[#This Row],[Mesačná splátka]],\"\")","v":{"v":606.137009320328,"d":"606.14 €"}},{"v":1500,"d":"1,500.00 €"},{"$f":"IFERROR(IF(Údaje[[#This Row],[Počiatočná hodnota]]>0,SLN(Údaje[[#This Row],[Počiatočná hodnota]],Údaje[[#This Row],[Očakávaná hodnota po skončení trvania úveru]],Údaje[[#This Row],[Počet zostávajúcich rokov služby ]]),0),0)","v":{"v":8083.333333333333,"d":"8,083.33 €"}},{"$f":"IFERROR(Údaje[[#This Row],[Ročné lineárne odpisy]]/12,0)","v":{"v":673.6111111111111,"d":"673.61 €"}},{"$f":"IFERROR(Údaje[[#This Row],[Počiatočná hodnota]]-(Údaje[[#This Row],[Ročné lineárne odpisy]]*((TODAY()-Údaje[[#This Row],[Dátum zakúpenia alebo prenajatia]])/365)),0)","v":{"v":50000,"d":"50,000.00 €"}}]
[{"$nulls":12},{"$f":"IFERROR(IF(AND(Údaje[[#This Row],[Počiatočná hodnota]]>0,Údaje[[#This Row],[Počiatočná hodnota]]<>Údaje[[#This Row],[Záloha]]),-1*PMT(Údaje[[#This Row],[Sadzba úveru]]/12,Údaje[[#This Row],[Dĺžka trvania úveru v rokoch]]*12,Údaje[[#This Row],[Počiatočná hodnota]]-Údaje[[#This Row],[Záloha]]),0),0)","v":{"v":0,"d":"0.00 €"}},null,{"$f":"IFERROR(Údaje[[#This Row],[Mesačné prevádzkové náklady]]+Údaje[[#This Row],[Mesačná splátka]],\"\")","v":{"v":0,"d":"0.00 €"}},null,{"$f":"IFERROR(IF(Údaje[[#This Row],[Počiatočná hodnota]]>0,SLN(Údaje[[#This Row],[Počiatočná hodnota]],Údaje[[#This Row],[Očakávaná hodnota po skončení trvania úveru]],Údaje[[#This Row],[Počet zostávajúcich rokov služby ]]),0),0)","v":{"v":0,"d":"0.00 €"}},{"$f":"IFERROR(Údaje[[#This Row],[Ročné lineárne odpisy]]/12,0)","v":{"v":0,"d":"0.00 €"}},{"$f":"IFERROR(Údaje[[#This Row],[Počiatočná hodnota]]-(Údaje[[#This Row],[Ročné lineárne odpisy]]*((TODAY()-Údaje[[#This Row],[Dátum zakúpenia alebo prenajatia]])/365)),0)","v":{"v":0,"d":"0.00 €"}}]
[{"$nulls":12},{"$f":"IFERROR(IF(AND(Údaje[[#This Row],[Počiatočná hodnota]]>0,Údaje[[#This Row],[Počiatočná hodnota]]<>Údaje[[#This Row],[Záloha]]),-1*PMT(Údaje[[#This Row],[Sadzba úveru]]/12,Údaje[[#This Row],[Dĺžka trvania úveru v rokoch]]*12,Údaje[[#This Row],[Počiatočná hodnota]]-Údaje[[#This Row],[Záloha]]),0),0)","v":{"v":0,"d":"0.00 €"}},null,{"$f":"IFERROR(Údaje[[#This Row],[Mesačné prevádzkové náklady]]+Údaje[[#This Row],[Mesačná splátka]],\"\")","v":{"v":0,"d":"0.00 €"}},null,{"$f":"IFERROR(IF(Údaje[[#This Row],[Počiatočná hodnota]]>0,SLN(Údaje[[#This Row],[Počiatočná hodnota]],Údaje[[#This Row],[Očakávaná hodnota po skončení trvania úveru]],Údaje[[#This Row],[Počet zostávajúcich rokov služby ]]),0),0)","v":{"v":0,"d":"0.00 €"}},{"$f":"IFERROR(Údaje[[#This Row],[Ročné lineárne odpisy]]/12,0)","v":{"v":0,"d":"0.00 €"}},{"$f":"IFERROR(Údaje[[#This Row],[Počiatočná hodnota]]-(Údaje[[#This Row],[Ročné lineárne odpisy]]*((TODAY()-Údaje[[#This Row],[Dátum zakúpenia alebo prenajatia]])/365)),0)","v":{"v":0,"d":"0.00 €"}}]